Body Name,Body,Transaction Date,Value,Supplier,Description,Purchase Type,Cost Center,Department,Section
Chorley Borough Council,http://Statistics.Data.gov.uk/id/local-Authority/30UE,05/07/2022,344.30,Facebook,Flower show,Online Purchase,4307,EARL - Communities,23A Housing Solutions & Public
Chorley Borough Council,http://Statistics.Data.gov.uk/id/local-Authority/30UE,10/07/2022,"1,785.31",Adobe,Subscription,Online Purchase,4301,EARL - Communities,23A Housing Solutions & Public
Chorley Borough Council,http://Statistics.Data.gov.uk/id/local-Authority/30UE,14/07/2022,500.00,Facebook,Flower show,Online Purchase,4307,EARL - Communities,23A Housing Solutions & Public
Chorley Borough Council,http://Statistics.Data.gov.uk/id/local-Authority/30UE,21/07/2022,500.00,Facebook,Flower show,Online Purchase,4307,EARL - Communities,23A Housing Solutions & Public
Chorley Borough Council,http://Statistics.Data.gov.uk/id/local-Authority/30UE,22/07/2022,435.96,Hotels.com,Accommodation for Flower Show,Accomodation,4305,EARL - Communities,23A Housing Solutions & Public
Chorley Borough Council,http://Statistics.Data.gov.uk/id/local-Authority/30UE,25/07/2022,500.00,Facebook,Flower show,Online Purchase,4307,EARL - Communities,23A Housing Solutions & Public
Chorley Borough Council,http://Statistics.Data.gov.uk/id/local-Authority/30UE,27/07/2022,500.00,Facebook,Flower Show,Online Purchase,4307,EARL - Communities,23A Housing Solutions & Public
Chorley Borough Council,http://Statistics.Data.gov.uk/id/local-Authority/30UE,30/07/2022,19.00,Shutterstock,Subscription,Online Purchase,4301,EARL - Communities,23A Housing Solutions & Public
Chorley Borough Council,http://Statistics.Data.gov.uk/id/local-Authority/30UE,30/07/2022,23.70,Freethought,Domain Renewal,Online Purchase,4512,EARL - Communities,23A Housing Solutions & Public
Chorley Borough Council,http://Statistics.Data.gov.uk/id/local-Authority/30UE,05/08/2022,20.40,Chorley BC,Test Payment,Online Purchase,4001,EARL - Communities,23A Housing Solutions & Public
Chorley Borough Council,http://Statistics.Data.gov.uk/id/local-Authority/30UE,05/08/2022,442.07,Facebook,Flower Show,Online Purchase,4307,EARL - Communities,23A Housing Solutions & Public
Chorley Borough Council,http://Statistics.Data.gov.uk/id/local-Authority/30UE,07/08/2022,23.70,Freethought,Subscription - IT - Chorley Markets,Online Purchase,4512,EARL - Communities,23A Housing Solutions & Public
Chorley Borough Council,http://Statistics.Data.gov.uk/id/local-Authority/30UE,19/08/2022,120.00,Freethought,Subscription IT - DNS Management,Online Purchase,4512,EARL - Communities,23A Housing Solutions & Public
Chorley Borough Council,http://Statistics.Data.gov.uk/id/local-Authority/30UE,19/08/2022,"2,832.00",Adband,Wristbands - Chorley Live,Online Purchase,4307,EARL - Communities,23A Housing Solutions & Public
Chorley Borough Council,http://Statistics.Data.gov.uk/id/local-Authority/30UE,30/08/2022,19.00,Shutterstock,Subscription - ICT,Online Purchase,4301,EARL - Communities,23A Housing Solutions & Public
Chorley Borough Council,http://Statistics.Data.gov.uk/id/local-Authority/30UE,03/09/2022,417.60,Freethought,Subscription,Online Purchase,4512,EARL - Communities,23A Housing Solutions & Public
Chorley Borough Council,http://Statistics.Data.gov.uk/id/local-Authority/30UE,06/09/2022,11.00,HMCTS,Court Fee,Court Fees,4120,EARL - Communities,23A Housing Solutions & Public
Chorley Borough Council,http://Statistics.Data.gov.uk/id/local-Authority/30UE,15/09/2022,267.00,Neststoria/Kings Hotel,Accommodation,Accomodation,5920,EARL - Communities,23A Housing Solutions & Public
Chorley Borough Council,http://Statistics.Data.gov.uk/id/local-Authority/30UE,20/09/2022,60.34,Booking.com,Accommodation,Accomodation,5920,EARL - Communities,23A Housing Solutions & Public
Chorley Borough Council,http://Statistics.Data.gov.uk/id/local-Authority/30UE,21/09/2022,-20.40,Chorley BC,Refund - Test Payment,Refund,4001,EARL - Communities,23A Housing Solutions & Public
Chorley Borough Council,http://Statistics.Data.gov.uk/id/local-Authority/30UE,23/09/2022,320.00,"Mercury, Westhoughton",Accommodation,Accomodation,5920,EARL - Communities,23A Housing Solutions & Public
Chorley Borough Council,http://Statistics.Data.gov.uk/id/local-Authority/30UE,23/09/2022,390.00,"Mercury, Westhoughton",Accommodation,Accomodation,5920,EARL - Communities,23A Housing Solutions & Public
Chorley Borough Council,http://Statistics.Data.gov.uk/id/local-Authority/30UE,23/09/2022,540.00,Tickled Trout Hotel,Accommodation - No receipts provided Booked by Housing Solutions,Online Purchase,5920,EARL - Communities,23A Housing Solutions & Public
Chorley Borough Council,http://Statistics.Data.gov.uk/id/local-Authority/30UE,28/09/2022,391.52,TPI by Booking .com,Accommodation,Accomodation,5920,EARL - Communities,23A Housing Solutions & Public
Chorley Borough Council,http://Statistics.Data.gov.uk/id/local-Authority/30UE,29/09/2022,19.00,Shutterstock,Subscription,Online Purchase,4301,EARL - Communities,23A Housing Solutions & Public
Chorley Borough Council,http://Statistics.Data.gov.uk/id/local-Authority/30UE,29/09/2022,20.00,Preston International,Accommodation - 20 discount difference = NAME REDACTED,Accomodation,5920,EARL - Communities,23A Housing Solutions & Public
Chorley Borough Council,http://Statistics.Data.gov.uk/id/local-Authority/30UE,29/09/2022,270.00,The Mercury,Accommodation,Accomodation,5920,EARL - Communities,23A Housing Solutions & Public
Chorley Borough Council,http://Statistics.Data.gov.uk/id/local-Authority/30UE,29/09/2022,325.71,The Mercury,Accommodation,Accomodation,5920,EARL - Communities,23A Housing Solutions & Public
Chorley Borough Council,http://Statistics.Data.gov.uk/id/local-Authority/30UE,29/09/2022,422.00,Legacy International,Accommodation,Accomodation,5920,EARL - Communities,23A Housing Solutions & Public
Chorley Borough Council,http://Statistics.Data.gov.uk/id/local-Authority/30UE,29/09/2022,512.00,Legacy International,Accommodation,Accomodation,5920,EARL - Communities,23A Housing Solutions & Public
Chorley Borough Council,http://Statistics.Data.gov.uk/id/local-Authority/30UE,13/07/2022,6.50,H M Courts,Payment for 13 summonses for unpaid business rates for a hearing on 2707.2022.,Court Fees,4310,CUST - Customer & Digital,Customer Services
Chorley Borough Council,http://Statistics.Data.gov.uk/id/local-Authority/30UE,03/08/2022,25.50,H M Courts,Payment for 51 summons to court for non payment of business rates.,Court Fees,4310,CUST - Customer & Digital,Customer Services
Chorley Borough Council,http://Statistics.Data.gov.uk/id/local-Authority/30UE,16/09/2022,10.50,H M Courts,Payment for 21 summonses to court for unpaid business rates for a court hearing on 26.10.2022.,Court Fees,4310,CUST - Customer & Digital,Customer Services
Chorley Borough Council,http://Statistics.Data.gov.uk/id/local-Authority/30UE,05/07/2022,147.00,HM Courts,147.00 paid for 294 liability orders - hearing 27.07.2022,Court Fees,4310,CUST - Customer & Digital,Customer Services
Chorley Borough Council,http://Statistics.Data.gov.uk/id/local-Authority/30UE,02/08/2022,156.50,HM COURTS,156.50- 313 cases for hearing 24.08.2022,Court Fees,4310,CUST - Customer & Digital,Customer Services
Chorley Borough Council,http://Statistics.Data.gov.uk/id/local-Authority/30UE,05/08/2022,350.00,Coopers,Mini bus for In Bloom Judging,Travel,4736,CUST - Customer & Digital,Streetscene
Chorley Borough Council,http://Statistics.Data.gov.uk/id/local-Authority/30UE,21/09/2022,223.68,ratchetshop,500Kg Ratchet Strap x 20,Online Purchase,4736,CUST - Customer & Digital,Streetscene
Chorley Borough Council,http://Statistics.Data.gov.uk/id/local-Authority/30UE,30/09/2022,33.11,RS components,"XPA conti cogged wedge belt,800Lx13Wmm x 2",Online Purchase,4736,CUST - Customer & Digital,Streetscene
Chorley Borough Council,http://Statistics.Data.gov.uk/id/local-Authority/30UE,07/09/2022,117.50,HM Courts,liability orders for south ribble council tax 235 cases 117.50,Court Fees,4310,CUST - Customer & Digital,Customer Services
Chorley Borough Council,http://Statistics.Data.gov.uk/id/local-Authority/30UE,07/09/2022,148.00,HM Courts,liability orders 296 148 paid for hearing 28.9.22,Court Fees,4310,CUST - Customer & Digital,Customer Services
Chorley Borough Council,http://Statistics.Data.gov.uk/id/local-Authority/30UE,12/07/2022,11.00,LCC,Copy Death Cert,Online Purchase,4741,GOVN - Policy & Governance,22G Corporate Support
Chorley Borough Council,http://Statistics.Data.gov.uk/id/local-Authority/30UE,26/07/2022,226.00,HMCTS,Court Hearing,Court Fees,4614,GOVN - Policy & Governance,22G Corporate Support
Chorley Borough Council,http://Statistics.Data.gov.uk/id/local-Authority/30UE,04/08/2022,47.61,TRAINLINE,3 x Adult - Off Peak Day Return tickets,Travel,4618,GOVN - Policy & Governance,22G Corporate Support
Chorley Borough Council,http://Statistics.Data.gov.uk/id/local-Authority/30UE,22/08/2022,226.00,HMCTS,Court Fee,Court Fees,4614,GOVN - Policy & Governance,22G Corporate Support
Chorley Borough Council,http://Statistics.Data.gov.uk/id/local-Authority/30UE,23/08/2022,20.38,UK WRISTBANDS,Premium Custom Printed Gold Tyvek Wristbands,Online Purchase,4336,GOVN - Policy & Governance,22G Corporate Support
Chorley Borough Council,http://Statistics.Data.gov.uk/id/local-Authority/30UE,25/08/2022,345.00,"LEGACY INT HOTEL, PRESTON",Accommodation for homeless- NAME REDACTED,Accomodation,5920,GOVN - Policy & Governance,22G Corporate Support
Chorley Borough Council,http://Statistics.Data.gov.uk/id/local-Authority/30UE,26/08/2022,153.60,The Mercury Hotel,Accommodation,Accomodation,5920,GOVN - Policy & Governance,22G Corporate Support
Chorley Borough Council,http://Statistics.Data.gov.uk/id/local-Authority/30UE,26/08/2022,280.00,PM Group Hotels,Accommodation,Online Purchase,5920,GOVN - Policy & Governance,22G Corporate Support
Chorley Borough Council,http://Statistics.Data.gov.uk/id/local-Authority/30UE,26/08/2022,768.00,Tickled Trout Hotel,Accommodation,Accomodation,5920,GOVN - Policy & Governance,22G Corporate Support
Chorley Borough Council,http://Statistics.Data.gov.uk/id/local-Authority/30UE,30/08/2022,820.00,University of York,University of York Course,Online Purchase,5400,GOVN - Policy & Governance,22G Corporate Support
Chorley Borough Council,http://Statistics.Data.gov.uk/id/local-Authority/30UE,15/09/2022,226.00,HMCTS Pennine,Court Fees,Court Fees,4614,GOVN - Policy & Governance,22G Corporate Support
Chorley Borough Council,http://Statistics.Data.gov.uk/id/local-Authority/30UE,21/09/2022,564.19,Trainline,Train to London,Online Purchase,4008,GOVN - Policy & Governance,22G Corporate Support
Chorley Borough Council,http://Statistics.Data.gov.uk/id/local-Authority/30UE,29/09/2022,-542.50,Trainline,Train Ticket REFUND,Refund,4008,GOVN - Policy & Governance,22G Corporate Support
Chorley Borough Council,http://Statistics.Data.gov.uk/id/local-Authority/30UE,29/09/2022,745.82,Trainline,Train Tickets,Travel,4008,GOVN - Policy & Governance,22G Corporate Support
Chorley Borough Council,http://Statistics.Data.gov.uk/id/local-Authority/30UE,01/07/2022,136.85,Premier Inn,B&B placement for NAME REDACTED,Accomodation,5920,EARL - Communities,23A Housing Solutions & Public
Chorley Borough Council,http://Statistics.Data.gov.uk/id/local-Authority/30UE,01/07/2022,549.11,Andrew Porter Storage,Storage costs for NAME REDACTED family on entering accommodation at Cotswold House. Company insisted on payment and would not wait for invoice to be paid by finance. also sent invoice with case officer name NAME REDACTED. We have asked for new receipt for CBC,Online Purchase,5920,EARL - Communities,23A Housing Solutions & Public
Chorley Borough Council,http://Statistics.Data.gov.uk/id/local-Authority/30UE,04/07/2022,514.50,Premier Inn,B&B placement for NAME REDACTED,Accomodation,5920,EARL - Communities,23A Housing Solutions & Public
Chorley Borough Council,http://Statistics.Data.gov.uk/id/local-Authority/30UE,11/07/2022,700.00,The Preston International,B&B placement for NAME REDACTED,Accomodation,5920,EARL - Communities,23A Housing Solutions & Public
Chorley Borough Council,http://Statistics.Data.gov.uk/id/local-Authority/30UE,15/07/2022,385.00,The Preston International,B&B placement for NAME REDACTED,Accomodation,5920,EARL - Communities,23A Housing Solutions & Public
Chorley Borough Council,http://Statistics.Data.gov.uk/id/local-Authority/30UE,18/07/2022,64.60,"Premier Inn (Preston, Fox Street)",1 night`s accommodation for NAME REDACTED for 18th July - 19th July,Accomodation,5920,EARL - Communities,23C Communities
Chorley Borough Council,http://Statistics.Data.gov.uk/id/local-Authority/30UE,20/07/2022,56.00,Hunter`s Lodge,1 Night`s hotel stay for NAME REDACTED and child,Accomodation,5920,EARL - Communities,23C Communities
Chorley Borough Council,http://Statistics.Data.gov.uk/id/local-Authority/30UE,20/07/2022,456.00,The Preston International,B&B placement for NAME REDACTED,Accomodation,5920,EARL - Communities,23A Housing Solutions & Public
Chorley Borough Council,http://Statistics.Data.gov.uk/id/local-Authority/30UE,21/07/2022,49.99,Rivington Lodge Hotel,1 Night`s hotel stay for NAME REDACTED,Accomodation,5920,EARL - Communities,23C Communities
Chorley Borough Council,http://Statistics.Data.gov.uk/id/local-Authority/30UE,22/07/2022,169.97,Rivington Lodge Hotel,Hotel Accommodation for NAME REDACTED from 22nd - 25th July 2022,Accomodation,5920,EARL - Communities,23C Communities
Chorley Borough Council,http://Statistics.Data.gov.uk/id/local-Authority/30UE,25/07/2022,199.96,Rivington Lodge,B&B placement for NAME REDACTED,Accomodation,5920,EARL - Communities,23A Housing Solutions & Public
Chorley Borough Council,http://Statistics.Data.gov.uk/id/local-Authority/30UE,28/07/2022,560.00,The Preston International,B&B placement for NAME REDACTED,Accomodation,5920,EARL - Communities,23A Housing Solutions & Public
Chorley Borough Council,http://Statistics.Data.gov.uk/id/local-Authority/30UE,02/08/2022,549.11,Andrew Porter Ltd,Old invoice for storage costs for NAME REDACTED paid as a one off (invoice dated 30th June 2022),Accomodation,5920,EARL - Communities,23C Communities
Chorley Borough Council,http://Statistics.Data.gov.uk/id/local-Authority/30UE,03/08/2022,560.00,The Preston International,B&B placement for NAME REDACTED,Accomodation,5920,EARL - Communities,23A Housing Solutions & Public
Chorley Borough Council,http://Statistics.Data.gov.uk/id/local-Authority/30UE,10/08/2022,525.00,Preston International (Legacy),Hotel accommodation for NAME REDACTED (5 nights from 12th August 2022),Accomodation,5920,EARL - Communities,23C Communities
Chorley Borough Council,http://Statistics.Data.gov.uk/id/local-Authority/30UE,15/08/2022,50.00,Hunter`s Lodge,1 night`s accommodation for NAME REDACTED,Accomodation,5920,EARL - Communities,23A Housing Solutions & Public
Chorley Borough Council,http://Statistics.Data.gov.uk/id/local-Authority/30UE,18/08/2022,195.00,Mercury Hotel (Bolton),Accommodation for NAME REDACTED  for 18th - 22nd August,Accomodation,5920,EARL - Communities,23C Communities
Chorley Borough Council,http://Statistics.Data.gov.uk/id/local-Authority/30UE,18/08/2022,195.00,Mercury Hotel (Bolton),Accommodation for NAME REDACTED  for 18th - 22nd August,Accomodation,5920,EARL - Communities,23C Communities
Chorley Borough Council,http://Statistics.Data.gov.uk/id/local-Authority/30UE,18/08/2022,195.00,Mercury Hotel (Bolton),Accommodation for NAME REDACTED  for 18th - 22nd August,Accomodation,5920,EARL - Communities,23C Communities
Chorley Borough Council,http://Statistics.Data.gov.uk/id/local-Authority/30UE,18/08/2022,211.00,Milton Hotel (Manchester),Accommodation for NAME REDACTED  for 18th - 22nd August,Accomodation,5920,EARL - Communities,23C Communities
Chorley Borough Council,http://Statistics.Data.gov.uk/id/local-Authority/30UE,18/08/2022,253.00,Henson Hotel (Blackpool),Accommodation for NAME REDACTED  for 18th - 22nd August,Accomodation,5920,EARL - Communities,23C Communities
Chorley Borough Council,http://Statistics.Data.gov.uk/id/local-Authority/30UE,18/08/2022,339.03,Trivelles Park Hotel,Accommodation for NAME REDACTED  for 18th - 22nd August,Accomodation,5920,EARL - Communities,23C Communities
Chorley Borough Council,http://Statistics.Data.gov.uk/id/local-Authority/30UE,19/08/2022,613.00,Preston International (Legacy),7 nights hotel accommodation for NAME REDACTED from 19th August 2022,Accomodation,5920,EARL - Communities,23C Communities
Chorley Borough Council,http://Statistics.Data.gov.uk/id/local-Authority/30UE,22/08/2022,170.00,Henson Hotel (Blackpool),Accommodation Costs for NAME REDACTED (22nd - 25th August),Accomodation,5920,EARL - Communities,23C Communities
Chorley Borough Council,http://Statistics.Data.gov.uk/id/local-Authority/30UE,22/08/2022,512.00,Mercury Hotel (Bolton),Two lots of accommodation (two invoices) NAME REDACTED (22nd - 27th Aug 2022) - 256.00 NAME REDACTED (22nd - 27th Aug 2022) - 256.00,Accomodation,5920,EARL - Communities,23C Communities
Chorley Borough Council,http://Statistics.Data.gov.uk/id/local-Authority/30UE,29/08/2022,90.00,Henson Hotel (Blackpool),Accommodation for NAME REDACTED from 31st August - 2nd September 2022,Accomodation,5920,EARL - Communities,23C Communities
Chorley Borough Council,http://Statistics.Data.gov.uk/id/local-Authority/30UE,30/08/2022,670.00,Preston International (Legacy),Accommodation Costs for NAME REDACTED for 8 days from 30th August,Accomodation,5920,EARL - Communities,23C Communities
Chorley Borough Council,http://Statistics.Data.gov.uk/id/local-Authority/30UE,01/09/2022,352.00,Mercury Hotel (Bolton),Accommodation for NAME REDACTED for 30th August to 6th September 2022,Accomodation,5920,EARL - Communities,23C Communities
Chorley Borough Council,http://Statistics.Data.gov.uk/id/local-Authority/30UE,02/09/2022,120.00,Henson Hotel (Blackpool),Accommodation for NAME REDACTED for 2nd - 4th September 2022,Accomodation,5920,EARL - Communities,23C Communities
Chorley Borough Council,http://Statistics.Data.gov.uk/id/local-Authority/30UE,05/09/2022,60.00,Henson Hotel (Blackpool),Accommodation for NAME REDACTED - 5th - 7th September 2022,Accomodation,5920,EARL - Communities,23C Communities
Chorley Borough Council,http://Statistics.Data.gov.uk/id/local-Authority/30UE,07/09/2022,30.00,Henson Hotel (Blackpool),Hotel room for 1 night for NAME REDACTED,Accomodation,5920,EARL - Communities,23C Communities
Chorley Borough Council,http://Statistics.Data.gov.uk/id/local-Authority/30UE,07/09/2022,838.00,Preston International (Legacy),Accommodation costs for NAME REDACTED for 7th - 16th September,Accomodation,5920,EARL - Communities,23C Communities
Chorley Borough Council,http://Statistics.Data.gov.uk/id/local-Authority/30UE,08/09/2022,45.00,Rivington Lodge Hotel,1 nights hotel accommodation for NAME REDACTED,Accomodation,5920,EARL - Communities,23A Housing Solutions & Public
Chorley Borough Council,http://Statistics.Data.gov.uk/id/local-Authority/30UE,08/09/2022,49.99,Rivington Lodge Hotel,1 night`s hotel stay (8th - 9th September) for NAME REDACTED,Accomodation,5920,EARL - Communities,23C Communities
Chorley Borough Council,http://Statistics.Data.gov.uk/id/local-Authority/30UE,09/09/2022,175.00,Henson Hotel (Blackpool),3 nights accommodation for NAME REDACTED,Accomodation,5920,EARL - Communities,23A Housing Solutions & Public
Chorley Borough Council,http://Statistics.Data.gov.uk/id/local-Authority/30UE,12/09/2022,45.00,Mercury Hotel (Bolton),1 night`s accommodation for NAME REDACTED,Accomodation,5920,EARL - Communities,23A Housing Solutions & Public
Chorley Borough Council,http://Statistics.Data.gov.uk/id/local-Authority/30UE,12/09/2022,440.00,Mercury Hotel (Bolton),2 Invoices in one transaction Hotel Accommodation for NAME REDACTED (6th - 8th September) - 110.00 Accommodation for NAME REDACTED (8th - 14th Sept 2022) - 330.00,Accomodation,5920,EARL - Communities,23C Communities
Chorley Borough Council,http://Statistics.Data.gov.uk/id/local-Authority/30UE,13/09/2022,45.00,Mercury Hotel (Bolton),1 night`s accommodation for NAME REDACTED,Accomodation,5920,EARL - Communities,23A Housing Solutions & Public
Chorley Borough Council,http://Statistics.Data.gov.uk/id/local-Authority/30UE,14/09/2022,55.00,Mercury Hotel (Bolton),1 night`s accommodation for NAME REDACTED,Accomodation,5920,EARL - Communities,23A Housing Solutions & Public
Chorley Borough Council,http://Statistics.Data.gov.uk/id/local-Authority/30UE,14/09/2022,88.00,Kings Hotel (Blackburn),1 night`s accommodation for NAME REDACTED,Accomodation,5920,EARL - Communities,23A Housing Solutions & Public
Chorley Borough Council,http://Statistics.Data.gov.uk/id/local-Authority/30UE,15/09/2022,267.00,Kings Hotel (Blackburn),Accommodation for NAME REDACTED from 15th - 20th September,Accomodation,5920,EARL - Communities,23C Communities
Chorley Borough Council,http://Statistics.Data.gov.uk/id/local-Authority/30UE,15/09/2022,401.00,Mercury Hotel (Bolton),Accommodation for NAME REDACTED 15th - 24th September 2022,Accomodation,5920,EARL - Communities,23C Communities
Chorley Borough Council,http://Statistics.Data.gov.uk/id/local-Authority/30UE,15/09/2022,438.00,Mercury Hotel (Bolton),Accommodation for NAME REDACTED for 16th - 24th September,Accomodation,5920,EARL - Communities,23C Communities
Chorley Borough Council,http://Statistics.Data.gov.uk/id/local-Authority/30UE,15/09/2022,668.00,Preston International (Legacy),Accommodation for NAME REDACTED for 16th - 23rd September 2022,Accomodation,5920,EARL - Communities,23C Communities
Chorley Borough Council,http://Statistics.Data.gov.uk/id/local-Authority/30UE,14/07/2022,316.32,Crowd Control Solutions,SKU: 124BK � Plain Fence Cover � Black,Online Purchase,4307,GOVN - Policy & Governance,22D Communications & Visitor E
Chorley Borough Council,http://Statistics.Data.gov.uk/id/local-Authority/30UE,15/07/2022,277.45,Baker Ross,Garden Colour-in Flowerpots - 258.00 Coloured Pencils - 16.50,Online Purchase,4305,GOVN - Policy & Governance,22D Communications & Visitor E
Chorley Borough Council,http://Statistics.Data.gov.uk/id/local-Authority/30UE,26/07/2022,24.99,Argos,Fellows A3 Laminator,Online Purchase,4307,GOVN - Policy & Governance,22D Communications & Visitor E
Chorley Borough Council,http://Statistics.Data.gov.uk/id/local-Authority/30UE,28/07/2022,2.02,The Buttonhole,Haberdashery - 2.02,Store Purchase,4309,GOVN - Policy & Governance,22D Communications & Visitor E
Chorley Borough Council,http://Statistics.Data.gov.uk/id/local-Authority/30UE,28/07/2022,19.06,Ryman,Art card - 1.99 Portrait Literature - 4.00 Cash Receipt Book- 5.99 Sellotape - 3.99 Bostik Removeable Glu Dots - 2.99 Carrier Bag - 0.10p,Store Purchase,4309,GOVN - Policy & Governance,22D Communications & Visitor E
Chorley Borough Council,http://Statistics.Data.gov.uk/id/local-Authority/30UE,28/07/2022,19.26,B&Q,Gorilla Crystal Clear Repair Tape - 9.98 Bale Ties 9x550m white - 9.28,Store Purchase,4309,GOVN - Policy & Governance,22D Communications & Visitor E
Chorley Borough Council,http://Statistics.Data.gov.uk/id/local-Authority/30UE,03/08/2022,571.95,Argos,Argos IPad Air,Online Purchase,4301,GOVN - Policy & Governance,22D Communications & Visitor E
Chorley Borough Council,http://Statistics.Data.gov.uk/id/local-Authority/30UE,04/08/2022,20.45,Kabloom,"Birds, Bees & Butterflies Seedbom Gift Box - Chorley Flower Show Photography Competition",Online Purchase,4305,GOVN - Policy & Governance,22D Communications & Visitor E
Chorley Borough Council,http://Statistics.Data.gov.uk/id/local-Authority/30UE,17/08/2022,89.00,Skiddle,Skiddle Refund tickets for Chorley Flower Show: 24.00 24.00 1.00 40.00,Refund,4305,GOVN - Policy & Governance,22D Communications & Visitor E
Chorley Borough Council,http://Statistics.Data.gov.uk/id/local-Authority/30UE,18/08/2022,0.01,Meta,Meta Facebook Ads,Online Purchase,5244,GOVN - Policy & Governance,22D Communications & Visitor E
Chorley Borough Council,http://Statistics.Data.gov.uk/id/local-Authority/30UE,18/08/2022,8.80,Meta,Meta Facebook Ads,Online Purchase,4008,GOVN - Policy & Governance,22D Communications & Visitor E
Chorley Borough Council,http://Statistics.Data.gov.uk/id/local-Authority/30UE,31/08/2022,408.00,Thirsty`s,Chorley Live Promotional Beer Mats,Online Purchase,4307,GOVN - Policy & Governance,22D Communications & Visitor E
Chorley Borough Council,http://Statistics.Data.gov.uk/id/local-Authority/30UE,07/09/2022,21.92,Meta,Meta Facebook Ad Tatton Gardens,Online Purchase,4008,GOVN - Policy & Governance,22D Communications & Visitor E
Chorley Borough Council,http://Statistics.Data.gov.uk/id/local-Authority/30UE,11/09/2022,21.73,Meta,Facebook post for Tatton Gardens Development,Online Purchase,4008,GOVN - Policy & Governance,22D Communications & Visitor E
Chorley Borough Council,http://Statistics.Data.gov.uk/id/local-Authority/30UE,22/07/2022,90.38,Microsoft,Cloud fees,Online Purchase,4512,CUST - Customer & Digital,ICT
Chorley Borough Council,http://Statistics.Data.gov.uk/id/local-Authority/30UE,19/08/2022,85.67,Microsoft,Cloud fees,Online Purchase,4512,CUST - Customer & Digital,ICT
Chorley Borough Council,http://Statistics.Data.gov.uk/id/local-Authority/30UE,22/08/2022,232.80,Cartridges direct,Cartridges for asset tags,Online Purchase,4512,CUST - Customer & Digital,ICT
Chorley Borough Council,http://Statistics.Data.gov.uk/id/local-Authority/30UE,22/08/2022,"2,900.00",ICO,ICO annual subscription,Online Purchase,4512,CUST - Customer & Digital,ICT
Chorley Borough Council,http://Statistics.Data.gov.uk/id/local-Authority/30UE,09/09/2022,99.73,Microsoft,Microsoft Support,Online Purchase,4512,CUST - Customer & Digital,ICT
Chorley Borough Council,http://Statistics.Data.gov.uk/id/local-Authority/30UE,10/09/2022,169.90,Amazon,"5 of: ProCase for 10.9 inch iPad Air 5 2022 / iPad Air 4 2020 Case with Penicl Holder, Rugged Heavy Duty Shockproof Cover Rotatable Kickstand Case [Support",Online Purchase,4512,CUST - Customer & Digital,ICT
Chorley Borough Council,http://Statistics.Data.gov.uk/id/local-Authority/30UE,16/09/2022,110.00,B and Q,storage boxes,Store Purchase,4512,CUST - Customer & Digital,ICT
Chorley Borough Council,http://Statistics.Data.gov.uk/id/local-Authority/30UE,16/09/2022,919.60,Amazon,"1 of: AN HUI MING 25pcs Black Gift Bags,Paper Bags with Handles,Paper Party Bags,Black Paper Bags, Paper Gift Bags with Handles (18*10*25cm)",Online Purchase,4512,CUST - Customer & Digital,ICT
Chorley Borough Council,http://Statistics.Data.gov.uk/id/local-Authority/30UE,17/09/2022,127.92,Amazon,"8 of: AN HUI MING 25pcs Black Gift Bags,Paper Bags with Handles,Paper Party Bags,Black Paper Bags, Paper Gift Bags with Handles (18*10*25cm)",Online Purchase,4512,CUST - Customer & Digital,ICT
Chorley Borough Council,http://Statistics.Data.gov.uk/id/local-Authority/30UE,23/09/2022,20.39,Amazon,"6 of: Avery 32-291 Packet of Dot Stickers (8 mm Dia, 560 Labels) - Assorted Colours",Online Purchase,4512,CUST - Customer & Digital,ICT
Chorley Borough Council,http://Statistics.Data.gov.uk/id/local-Authority/30UE,23/09/2022,219.99,Amazon,"1 of: Logitech Combo Touch iPad Pro 12.9-inch (5th gen - 2021) Keyboard Case, Detachable Backlit Keyboard with Kickstand, Click-Anywhere Trackpad, Smart Con",Online Purchase,4512,CUST - Customer & Digital,ICT
Chorley Borough Council,http://Statistics.Data.gov.uk/id/local-Authority/30UE,29/09/2022,244.59,Amazon,"40 of: Apple MFi Certified Lightning to 3.5 mm Headphone Jack Adapter,iPhone to 3.5mm Audio Aux Jack Adapter Dongle Cable Converter Compatible with iPhone 13",Online Purchase,4512,CUST - Customer & Digital,ICT
Chorley Borough Council,http://Statistics.Data.gov.uk/id/local-Authority/30UE,29/09/2022,279.60,Amazon,"40 of: USB C to 3.5mm Headphone and Charger Adapter,Usb C Headphones Adapter Aux to Usb C Compatible with MacBook Pro, Ipad Pro, Huawei Mate 30 screen protectors",Online Purchase,4512,CUST - Customer & Digital,ICT
